fUSD/lending_fUSD_20240502
["ID","MTS","AMOUNT","RATE_DAILY","PERIOD"]
[325275952,1714678238198,-150.58249625,0.00021052,2]
[325275953,1714678238208,-150.0,0.00021169,2]
[325275954,1714678238218,-500.0,0.00021171,2]
[325275955,1714678238227,-154.23924361,0.00021175,2]
[325275956,1714678238237,-168.4,0.00021176,2]
[325275957,1714678238246,-156.02112523,0.00021211,2]
[325275958,1714678238256,-342.16,0.00021237,2]
[325275959,1714678238265,-368.81,0.00021293,2]
[325275960,1714678238274,-157.35291314,0.0002139,2]
[325275961,1714678238284,-154.23924361,0.00021407,2]
[325275962,1714678238293,-270.56803051,0.00021436,2]
[325275963,1714678238303,-270.56803051,0.00021442,2]
[325275964,1714678238312,-700.79,0.00021448,2]
[325275965,1714678238321,-156.91117699,0.00021485,2]
[325275966,1714678238330,-1386.23,0.00021546,2]
[325275967,1714678238340,-250.0,0.00021546,2]
[325275968,1714678238349,-209.22,0.00021611,2]
[325275969,1714678238359,-205.73,0.00021644,2]
[325275970,1714678238368,-270.56803051,0.00021656,2]
[325275971,1714678238377,-155.51385051,0.00021829,2]
[325275972,1714678238388,-270.56803051,0.00021878,2]
[325275973,1714678238397,-1000.0,0.00021898,2]
[325275974,1714678238406,-1000.0,0.00021898,2]
[325275975,1714678238416,-2000.0,0.00021918,2]
[325275976,1714678238425,-272.72,0.00021956,2]
[325275977,1714678238434,-216.0,0.00021961,2]
[325275978,1714678238445,-153.33265497,0.0002208,2]
[325275979,1714678238455,-153.33265497,0.00022098,2]
[325275980,1714678238466,-156.91117699,0.00022124,2]
[325275981,1714678238476,-157.73472058,0.00022234,2]
[325275982,1714678238485,-1361.99,0.00022415,2]
[325275983,1714678238494,-156.02112523,0.00022433,2]
[325275984,1714678238505,-4823.68,0.00022511,2]
[325275985,1714678238514,-1748.69131799,0.00022601,2]
[325275986,1714678238523,-156.02112523,0.00022889,2]
[325275987,1714678238533,-156.02112523,0.00022912,2]
[325275988,1714678238543,-216.0,0.0002311,2]
[325275989,1714678238553,-153.33265497,0.00023384,2]
[325275990,1714678238562,-156.91117699,0.0002342,2]
[325275991,1714678238571,-166.01,0.00023608,2]
[325275992,1714678238580,-270.56803051,0.00023946,2]
[325275993,1714678238589,-368.81,0.00023954,2]
[325275994,1714678238598,-154.43409251,0.00024048,2]
[325275995,1714678238607,-270.56803051,0.0002405,2]
[325275996,1714678238616,-156.91117699,0.00024268,2]
[325275997,1714678238625,-156.91117699,0.00024437,2]
[325275998,1714678238636,-272.72,0.000247,2]
[325275999,1714678238645,-270.56803051,0.00024777,2]
[325276000,1714678238654,-156.91117699,0.00024827,2]
[325276001,1714678238663,-155.0,0.00025,2]
[325276002,1714678238673,-157.73472058,0.00025013,2]
[325276003,1714678238682,-152.41856813,0.0002508,2]
[325276005,1714678238691,-153.6354087,0.00025119,2]
[325276007,1714678238700,-152.41856813,0.00025218,2]
[325276009,1714678238710,-154.23924361,0.00025332,2]
[325276011,1714678238719,-155.51549721,0.00025424,2]
[325276013,1714678238728,-150.58249625,0.00025651,2]
[325276017,1714678238742,-157.06499759,0.00025688,2]
[325276020,1714678238752,-154.43409251,0.00025931,2]
[325276023,1714678238761,-270.56803051,0.00026202,2]
[325276025,1714678238771,-270.56803051,0.00026216,2]
[325276027,1714678238780,-154.23924361,0.00026372,2]
[325276029,1714678238789,-1000.0,0.00026448,2]
[325276031,1714678238798,-1000.0,0.00026448,2]
[325276033,1714678238807,-451.11,0.00026606,3]
[325276035,1714678238817,-368.81,0.00026616,2]
[325276037,1714678238826,-150.36,0.00026949,3]
[325276039,1714678238836,-3167.46227607,0.00026959,2]
[325276041,1714678238845,-300.73,0.0002699,3]
[325276043,1714678238854,-155.0,0.00027,2]
[325276045,1714678238863,-151.71311979,0.00027028,2]
[325276047,1714678238872,-152.41856813,0.00027128,2]
[325276049,1714678238884,-156.91117699,0.00027174,2]
[325276051,1714678238893,-156.91117699,0.00027239,2]
[325276053,1714678238902,-157.06499759,0.00027302,2]
[325276055,1714678238911,-155.0,0.00027385,30]
[325276057,1714678238921,-3217.0,0.00027385,4]
[325276059,1714678238931,-2985.0,0.00027385,4]
[325276060,1714678238940,-272.72,0.00027445,2]
[325276061,1714678238950,-157.73472058,0.00027507,2]
[325276062,1714678238959,-153.90874374,0.0002754,2]
[325276063,1714678238969,-270.56803051,0.00027612,2]
[325276064,1714678238978,-154.23924361,0.00027624,2]
[325276065,1714678238987,-155.22330447,0.00027693,2]
[325276066,1714678238996,-371.0,0.00027713,5]
[325276067,1714678239005,-156.91117699,0.0002784,2]
[325276068,1714678239014,-156.02112523,0.00027844,2]
[325276069,1714678239024,-270.56803051,0.00027877,2]
[325276070,1714678239033,-167.9557387,0.00027929,2]
[325276072,1714678239042,-153.33265497,0.00027946,2]
[325276074,1714678239051,-270.56803051,0.00027989,2]
[325276076,1714678239061,-256.3458,0.00028147,2]
[325276078,1714678239071,-981.5073,0.0002818,2]
[325276080,1714678239079,-157.73472058,0.00028225,2]
[325276082,1714678239091,-1292.61178269,0.00028247,2]
[325276090,1714678239150,-3707.38821731,0.00028247,2]
[325276092,1714678239159,-5306.0554,0.0002828,2]
[325276093,1714678239169,-653.23043595,0.0002828,2]
[325276117,1714678239368,-265.60226405,0.0002828,2]
[325276119,1714678239383,-468.7988,0.0002828,2]
[325276121,1714678239392,-1801.4802,0.0002828,2]
[325276123,1714678239402,-604.22139459,0.0002828,2]
[325276200,1714678240423,-2835.78997608,0.0002828,2]
[325276201,1714678240555,-2506.36333078,0.0002828,2]
[325276202,1714678240566,-4964.23409855,0.0002828,2]
[325276203,1714678240576,-624.79,0.0002828,2]
[325276204,1714678240585,-1000.0,0.0002828,2]
[325276205,1714678240594,-1273.7851,0.0002828,2]
[325276206,1714678240603,-300.72,0.00028319,3]
[325276207,1714678240613,-167.25270647,0.00028319,2]
[325276208,1714678240622,-151.71311979,0.00028327,2]
[325276209,1714678240631,-422.79814019,0.00028352,2]
[325276210,1714678240663,-4063.09736036,0.00028352,2]
[325276211,1714678240674,-601.46,0.0002836,3]
[325276212,1714678240684,-427.88605358,0.00028364,2]
[325276213,1714678240694,-158.5390509,0.0002837,2]
[325276214,1714678240703,-155.27035313,0.00028378,2]
[325276215,1714678240713,-2181.21939171,0.00028378,2]
[325276216,1714678240723,-204.112069,0.00028378,2]
[325276217,1714678240732,-343.59491737,0.00028378,2]
[325276218,1714678240741,-155.0,0.00028378,2]
[325276219,1714678240750,-155.0,0.00028378,2]
[325276220,1714678240759,-347.06747875,0.00028378,2]
[325276221,1714678240768,-236.70245155,0.00028378,2]
[325276222,1714678240777,-331.1786662,0.00028379,2]
[325276223,1714678240786,-35878.2447,0.0002838,2]
[325276224,1714678240795,-100000.0,0.0002838,2]
[325276225,1714678240804,-841.8204,0.0002838,2]
[325276226,1714678240813,-500.0,0.0002838,2]
[325276227,1714678240823,-22707.1464,0.0002838,2]
[325276228,1714678240832,-334267.3004,0.0002838,2]
[325276229,1714678240842,-710.18594534,0.00028411,2]
[325276230,1714678240851,-150.58661317,0.0002845,2]
[325276231,1714678240860,-245000.0,0.0002848,2]
[325276232,1714678240870,-1056.0,0.00028495,2]
[325276233,1714678240879,-808.0,0.00028495,2]
[325276234,1714678240889,-306.0,0.00028495,2]
[325276235,1714678240898,-715.86,0.00028495,2]
[325276236,1714678240908,-437.0,0.00028495,2]
[325276237,1714678240917,-1861.0,0.00028495,2]
[325276238,1714678240927,-154.23924361,0.00028511,2]
[325276239,1714678240937,-1144.32512558,0.00028532,2]
[325276240,1714678240947,-710.18594532,0.00028606,2]
[325276241,1714678240956,-157.06499759,0.00028613,2]
[325276242,1714678240966,-153.33265497,0.00028723,2]
[325276243,1714678240975,-710.18594532,0.000288,2]
[325276244,1714678240984,-5318.73126002,0.00028818,2]
[325276245,1714678240994,-175.84005745,0.00028819,2]
[325276246,1714678241003,-1422358.22226894,0.000289,7]
[325276247,1714678241014,-1001824.98719432,0.000289,2]
[325276248,1714678241023,-270.56803051,0.00028918,2]
[325276249,1714678241033,-156.91117699,0.00028995,2]
[325276250,1714678241042,-314.18,0.00029,2]
[325276251,1714678241051,-157.73472058,0.00029166,2]
[325276252,1714678241061,-368.81,0.00029278,2]
[325276253,1714678241072,-154.23924361,0.00029591,2]
[325276254,1714678241081,-239.53,0.00029621,2]
[325276255,1714678241091,-7388.11,0.00029621,2]
[325276256,1714678241100,-200.0,0.00029621,2]
[325276257,1714678241109,-1500.0,0.00029621,2]
[325276258,1714678241119,-2751.0,0.00029621,2]
[325276259,1714678241129,-250.0,0.00029621,2]
[325276260,1714678241139,-239.53,0.00029629,2]
[325276261,1714678241149,-239.53,0.00029637,2]
[325276262,1714678241159,-239.53,0.00029645,2]
[325276263,1714678241168,-239.53,0.00029653,2]
[325276264,1714678241178,-239.53,0.0002966,2]
[325276265,1714678241187,-239.53,0.00029668,2]
[325276266,1714678241197,-239.53,0.00029676,2]
[325276267,1714678241206,-239.53,0.00029684,2]
[325276268,1714678241216,-152.58015286,0.00029684,2]
[325276269,1714678241226,-157.73472058,0.00029687,2]
[325276270,1714678241236,-239.53,0.00029692,2]
[325276271,1714678241246,-49385.99,0.00029698,6]
[325276272,1714678241265,-239.53,0.00029699,2]
[325276273,1714678241274,-239.53,0.00029707,2]
[325276274,1714678241283,-239.53,0.00029715,2]
[325276275,1714678241293,-239.53,0.00029723,2]
[325276276,1714678241302,-239.53,0.00029731,2]
[325276277,1714678241311,-239.53,0.00029738,2]
[325276278,1714678241320,-239.53,0.00029746,2]
[325276279,1714678241330,-239.53,0.00029754,2]
[325276280,1714678241339,-239.53,0.00029762,2]
[325276281,1714678241348,-239.53,0.0002977,2]
[325276282,1714678241358,-21518.05949525,0.00029833,2]
[325276283,1714678241367,-5318.73126,0.00029838,2]
[325276284,1714678241377,-5000.0,0.00029843,2]
[325276285,1714678241387,-153.6354087,0.00029891,2]
[325276286,1714678241396,-500.0,0.0003,10]
[325276287,1714678241406,-485.0,0.0003,2]
[325276288,1714678241415,-18156.65,0.0003,5]
[325276289,1714678241424,-2221.6247304,0.0003,3]
[325276290,1714678241434,-1044.7,0.0003,2]
[325276291,1714678241450,-150.0,0.0003,2]
[325276292,1714678241459,-782.8,0.0003,2]
[325276293,1714678241469,-205.74,0.0003,2]
[325276294,1714678241478,-150.0,0.0003,2]
[325276295,1714678241489,-1005.05776685,0.00030034,4]
[325276296,1714678241499,-219.57415913,0.00030034,4]
[325276297,1714678241509,-325.7521165,0.00030034,4]
[325276298,1714678241519,-336.29347923,0.00030034,4]
[325276299,1714678241529,-171.20078476,0.00030034,4]
[325276300,1714678241539,-808.17399418,0.00030034,4]
[325276301,1714678241549,-156.57717986,0.00030035,4]
[325276302,1714678241558,-155.33324119,0.00030035,4]
[325276303,1714678241568,-3658.63465762,0.00030035,4]
[325276304,1714678241578,-155.75426514,0.00030035,4]
[325276305,1714678241587,-167.25270647,0.00030036,2]
[325276306,1714678241597,-175.8,0.000301,2]
[325276307,1714678241607,-268.33424577,0.00030134,4]
[325276308,1714678241616,-191.57037153,0.00030134,4]
[325276309,1714678241626,-155.92912508,0.00030134,2]
[325276310,1714678241636,-188.95985831,0.00030134,4]
[325276311,1714678241646,-470.28425654,0.00030134,4]
[325276312,1714678241655,-2115.11128157,0.00030135,4]
[325276313,1714678241665,-7544.42638707,0.00030135,4]
[325276314,1714678241675,-888.0,0.00030135,3]
[325276315,1714678241685,-1398.65979841,0.00030136,4]
[325276316,1714678241695,-1605.82144297,0.00030136,4]
[325276317,1714678241704,-500.0,0.00030136,2]
[325276318,1714678241714,-1392.92993436,0.00030136,4]
[325276319,1714678241724,-500.0,0.00030136,2]
[325276320,1714678241733,-2972.25333034,0.00030136,4]
[325276321,1714678241743,-500.0,0.00030136,2]
[325276322,1714678241752,-500.0,0.00030136,2]
[325276323,1714678241762,-500.0,0.00030136,2]
[325276324,1714678241771,-500.0,0.00030136,2]
[325276325,1714678241781,-501.15010847,0.00030136,2]
[325276326,1714678241790,-299.91873747,0.00030136,2]
[325276327,1714678241800,-295.18230411,0.00030136,2]
[325276328,1714678241810,-503.00244402,0.00030136,2]
[325276329,1714678241819,-444.3911085,0.00030136,2]
[325276330,1714678241829,-500.0,0.00030136,2]
[325276331,1714678241838,-500.0,0.00030136,2]
[325276332,1714678241848,-500.0,0.00030136,2]
[325276333,1714678241859,-500.0,0.00030136,2]
[325276334,1714678241868,-500.0,0.00030136,2]
[325276335,1714678241878,-500.0,0.00030136,2]
[325276336,1714678241889,-500.0,0.00030136,2]
[325276337,1714678241898,-500.0,0.00030136,2]
[325276338,1714678241908,-500.0,0.00030136,2]
[325276339,1714678241918,-500.0,0.00030136,2]
[325276340,1714678241929,-500.0,0.00030136,2]
[325276341,1714678241939,-500.0,0.00030136,2]
[325276342,1714678241948,-500.0,0.00030136,2]
[325276343,1714678241958,-500.0,0.00030136,2]
[325276344,1714678241968,-184.51557575,0.00030136,2]
[325276345,1714678241978,-500.0,0.00030136,2]
[325276346,1714678241988,-500.0,0.00030136,2]
[325276347,1714678241998,-500.0,0.00030136,2]
[325276348,1714678242007,-500.0,0.00030136,2]
[325276349,1714678242017,-552.33023786,0.00030136,2]
[325276350,1714678242026,-504.43160958,0.00030136,2]
[325276351,1714678242036,-500.0,0.00030136,2]
[325276352,1714678242046,-500.0,0.00030136,2]
[325276353,1714678242055,-910.79,0.00030136,2]
[325276354,1714678242064,-500.0,0.00030136,2]
[325276355,1714678242074,-500.0,0.00030136,2]
[325276356,1714678242084,-500.0,0.00030136,2]
[325276357,1714678242094,-798.08,0.00030136,2]
[325276358,1714678242103,-665.53,0.00030136,2]
[325276359,1714678242113,-500.0,0.00030136,2]
[325276360,1714678242123,-500.0,0.00030136,2]
[325276361,1714678242133,-820.83,0.00030136,2]
[325276362,1714678242142,-500.0,0.00030136,2]
[325276363,1714678242152,-799.18,0.00030136,2]
[325276364,1714678242161,-500.0,0.00030136,2]
[325276365,1714678242171,-500.0,0.00030136,2]
[325276366,1714678242180,-501.61813921,0.00030136,2]
[325276367,1714678242189,-500.0,0.00030136,2]
[325276368,1714678242199,-575.16,0.00030136,2]
[325276369,1714678242209,-517.11,0.00030136,2]
[325276370,1714678242219,-703.6,0.00030136,2]
[325276371,1714678242228,-571.74,0.00030136,2]
[325276372,1714678242238,-500.0,0.00030136,2]
[325276373,1714678242247,-511.57724666,0.00030136,2]
[325276374,1714678242256,-500.0,0.00030136,2]
[325276375,1714678242266,-500.0,0.00030136,2]
[325276376,1714678242275,-500.0,0.00030136,2]
[325276377,1714678242284,-627.9,0.00030136,2]
[325276378,1714678242294,-500.0,0.00030136,2]
[325276379,1714678242303,-500.0,0.00030136,2]
[325276380,1714678242312,-701.77,0.00030136,2]
[325276381,1714678242322,-784.86,0.00030136,2]
[325276382,1714678242331,-500.0,0.00030136,2]
[325276384,1714678242341,-500.0,0.00030136,2]
[325276385,1714678242350,-558.66,0.00030136,2]
[325276386,1714678242359,-500.0,0.00030136,2]
[325276387,1714678242369,-500.0,0.00030136,2]
[325276388,1714678242378,-682.13593366,0.00030136,4]
[325276389,1714678242388,-500.0,0.00030136,2]
[325276390,1714678242397,-365.77770161,0.00030136,2]
[325276391,1714678242407,-500.0,0.00030136,2]
[325276392,1714678242416,-516.43123746,0.00030136,2]
[325276393,1714678242425,-500.0,0.00030136,2]
[325276394,1714678242435,-500.0,0.00030136,2]
[325276395,1714678242446,-881.51,0.00030136,2]
[325276396,1714678242455,-500.0,0.00030136,2]
[325276397,1714678242468,-500.0,0.00030136,2]
[325276400,1714678242477,-500.0,0.00030136,2]
[325276401,1714678242855,-500.0,0.00030136,2]
[325276402,1714678242865,-500.0,0.00030136,2]
[325276403,1714678242875,-500.0,0.00030136,2]
[325276404,1714678242884,-500.0,0.00030136,2]
[325276405,1714678242894,-500.0,0.00030136,2]
[325276406,1714678242904,-500.0,0.00030136,2]
[325276407,1714678242913,-500.0,0.00030136,2]
[325276408,1714678242924,-500.0,0.00030136,2]
[325276409,1714678242934,-500.0,0.00030136,2]
[325276410,1714678242943,-500.0,0.00030136,2]
[325276412,1714678242954,-500.0,0.00030136,2]
[325276414,1714678242963,-500.0,0.00030136,2]
[325276417,1714678242972,-500.0,0.00030136,2]
[325276420,1714678242982,-500.0,0.00030136,2]
[325276424,1714678242992,-500.0,0.00030136,2]
[325276428,1714678243001,-500.0,0.00030136,2]
[325276431,1714678243011,-500.0,0.00030136,2]
[325276434,1714678243020,-582.62,0.00030136,2]
[325276437,1714678243030,-500.0,0.00030136,2]
[325276440,1714678243039,-500.0,0.00030136,2]
[325276443,1714678243048,-500.0,0.00030136,2]
[325276446,1714678243057,-500.0,0.00030136,2]
[325276449,1714678243066,-500.0,0.00030136,2]
[325276452,1714678243075,-500.0,0.00030136,2]
[325276456,1714678243084,-389.97997343,0.00030136,2]
[325276460,1714678243093,-307.12306575,0.00030136,2]
[325276463,1714678243102,-500.0,0.00030136,2]
[325276468,1714678243112,-500.0,0.00030136,2]
[325276471,1714678243121,-500.0,0.00030136,2]
[325276474,1714678243130,-181.97342589,0.00030136,4]
[325276476,1714678243140,-500.0,0.00030136,2]
[325276479,1714678243149,-500.0,0.00030136,2]
[325276482,1714678243158,-500.0,0.00030136,2]
[325276484,1714678243168,-500.0,0.00030136,2]
[325276487,1714678243178,-500.0,0.00030136,2]
[325276489,1714678243189,-500.0,0.00030136,2]
[325276492,1714678243199,-500.0,0.00030136,2]
[325276495,1714678243209,-500.0,0.00030136,2]
[325276497,1714678243218,-500.0,0.00030136,2]
[325276498,1714678243228,-500.0,0.00030136,2]
[325276499,1714678243237,-500.0,0.00030136,2]
[325276501,1714678243247,-500.0,0.00030136,2]
[325276503,1714678243256,-571.33,0.00030136,2]
[325276505,1714678243265,-500.0,0.00030136,2]
[325276507,1714678243275,-500.0,0.00030136,2]
[325276509,1714678243284,-761.07,0.00030136,2]
[325276511,1714678243293,-547.28,0.00030136,2]
[325276513,1714678243303,-500.0,0.00030136,2]
[325276515,1714678243312,-500.0,0.00030136,2]
[325276517,1714678243321,-500.0,0.00030136,2]
[325276519,1714678243331,-500.0,0.00030136,2]
[325276520,1714678243340,-500.0,0.00030136,2]
[325276522,1714678243349,-500.0,0.00030136,2]
[325276523,1714678243358,-705.75,0.00030136,2]
[325276524,1714678243368,-500.0,0.00030136,2]
[325276525,1714678243377,-637.9,0.00030136,2]
[325276526,1714678243388,-500.0,0.00030136,2]
[325276527,1714678243396,-500.0,0.00030136,2]
[325276528,1714678243405,-500.0,0.00030136,2]
[325276529,1714678243415,-547.98,0.00030136,2]
[325276530,1714678243424,-500.0,0.00030136,2]
[325276531,1714678243433,-524.12,0.00030136,2]
[325276532,1714678243445,-500.0,0.00030136,2]
[325276533,1714678243454,-500.0,0.00030136,2]
[325276534,1714678243463,-500.0,0.00030136,2]
[325276535,1714678243472,-767.83,0.00030136,2]
[325276536,1714678243483,-509.03,0.00030136,2]
[325276537,1714678243493,-500.0,0.00030136,2]
[325276538,1714678243502,-500.0,0.00030136,2]
[325276539,1714678243512,-500.0,0.00030136,2]
[325276540,1714678243522,-500.0,0.00030136,2]
[325276541,1714678243536,-500.0,0.00030136,2]
[325276542,1714678243546,-500.0,0.00030136,2]
[325276544,1714678243555,-500.0,0.00030136,2]
[325276546,1714678243564,-500.0,0.00030136,2]
[325276548,1714678243573,-500.0,0.00030136,2]
[325276550,1714678243582,-500.0,0.00030136,2]
[325276552,1714678243591,-500.0,0.00030136,2]
[325276554,1714678243600,-500.0,0.00030136,2]
[325276556,1714678243609,-500.0,0.00030136,2]
[325276558,1714678243618,-500.0,0.00030136,2]
[325276560,1714678243628,-500.0,0.00030136,2]
[325276562,1714678243637,-500.0,0.00030136,2]
[325276564,1714678243647,-500.0,0.00030136,2]
[325276566,1714678243656,-500.0,0.00030136,2]
[325276568,1714678243665,-500.0,0.00030136,2]
[325276570,1714678243674,-500.0,0.00030136,2]
[325276572,1714678243683,-704.39,0.00030136,2]
[325276574,1714678243692,-500.0,0.00030136,2]
[325276576,1714678243702,-500.0,0.00030136,2]
[325276578,1714678243711,-500.0,0.00030136,2]
[325276580,1714678243721,-500.0,0.00030136,2]
[325276582,1714678243730,-519.08952923,0.00030136,2]
[325276584,1714678243739,-500.0,0.00030136,2]
[325276586,1714678243748,-500.0,0.00030136,2]
[325276588,1714678243758,-500.0,0.00030136,2]
[325276590,1714678243767,-500.0,0.00030136,2]
[325276592,1714678243776,-500.0,0.00030136,2]
[325276594,1714678243786,-535.55647793,0.00030136,2]
[325276596,1714678243795,-500.0,0.00030136,2]
[325276598,1714678243805,-500.0,0.00030136,2]
[325276600,1714678243814,-1000.0,0.00030136,2]
[325276602,1714678243824,-579.33332157,0.00030136,2]
[325276604,1714678243833,-500.0,0.00030136,2]
[325276606,1714678243842,-500.0,0.00030136,2]
[325276608,1714678243851,-167.23936765,0.00030136,2]
[325276610,1714678243861,-500.0,0.00030136,2]
[325276612,1714678243870,-500.0,0.00030136,2]
[325276614,1714678243879,-500.0,0.00030136,2]
[325276617,1714678243889,-500.0,0.00030136,2]
[325276619,1714678243899,-500.0,0.00030136,2]
[325276621,1714678243908,-957.97,0.00030136,2]
[325276623,1714678243918,-1095.62,0.00030136,2]
[325276624,1714678243928,-566.59,0.00030136,2]
[325276625,1714678243938,-500.0,0.00030136,2]
[325276626,1714678243947,-834.5,0.00030136,2]
[325276627,1714678243958,-500.0,0.00030136,2]
[325276628,1714678243967,-625.53,0.00030136,2]
[325276630,1714678243977,-695.39,0.00030136,2]
[325276631,1714678243986,-500.0,0.00030136,2]
[325276632,1714678243996,-500.0,0.00030136,2]
[325276633,1714678244006,-771.02,0.00030136,2]
[325276634,1714678244015,-500.0,0.00030136,2]
[325276635,1714678244024,-500.0,0.00030136,2]
[325276636,1714678244034,-500.0,0.00030136,2]
[325276637,1714678244043,-500.0,0.00030136,2]
[325276638,1714678244053,-500.0,0.00030136,2]
[325276639,1714678244063,-500.0,0.00030136,2]
[325276640,1714678244072,-500.0,0.00030136,2]
[325276641,1714678244081,-500.0,0.00030136,2]
[325276642,1714678244090,-638.52,0.00030136,2]
[325276643,1714678244100,-500.0,0.00030136,2]
[325276644,1714678244109,-500.0,0.00030136,2]
[325276645,1714678244118,-926.89,0.00030136,2]
[325276646,1714678244128,-500.0,0.00030136,2]
[325276647,1714678244137,-500.0,0.00030136,2]
[325276648,1714678244146,-500.0,0.00030136,2]
[325276649,1714678244156,-500.0,0.00030136,2]
[325276650,1714678244165,-536.96,0.00030136,2]
[325276651,1714678244175,-713.11,0.00030136,2]
[325276652,1714678244184,-500.0,0.00030136,2]
[325276653,1714678244193,-500.0,0.00030136,2]
[325276654,1714678244202,-500.0,0.00030136,2]
[325276655,1714678244211,-500.0,0.00030136,2]
[325276656,1714678244221,-500.0,0.00030136,2]
[325276657,1714678244230,-500.0,0.00030136,2]
[325276658,1714678244239,-500.0,0.00030136,2]
[325276659,1714678244249,-500.0,0.00030136,2]
[325276660,1714678244257,-500.0,0.00030136,2]
[325276661,1714678244266,-500.0,0.00030136,2]
[325276662,1714678244275,-500.0,0.00030136,2]
[325276663,1714678244284,-500.0,0.00030136,2]
[325276664,1714678244294,-500.0,0.00030136,2]
[325276665,1714678244303,-500.0,0.00030136,2]
[325276666,1714678244312,-500.0,0.00030136,2]
[325276667,1714678244321,-500.0,0.00030136,2]
[325276668,1714678244331,-500.0,0.00030136,2]
[325276669,1714678244341,-500.0,0.00030136,2]
[325276670,1714678244351,-500.0,0.00030136,2]
[325276671,1714678244361,-500.0,0.00030136,2]
[325276672,1714678244371,-500.0,0.00030136,2]
[325276673,1714678244382,-500.0,0.00030136,2]
[325276674,1714678244393,-500.0,0.00030136,2]
[325276675,1714678244407,-501.52,0.00030136,2]
[325276676,1714678244418,-500.0,0.00030136,2]
[325276677,1714678244428,-500.0,0.00030136,2]
[325276678,1714678244439,-500.0,0.00030136,2]
[325276679,1714678244450,-500.0,0.00030136,2]
[325276680,1714678244461,-683.7,0.00030136,2]
[325276681,1714678244475,-150.0,0.00030136,2]
[325276682,1714678244486,-500.0,0.00030136,2]
[325276683,1714678244497,-500.0,0.00030136,2]
[325276684,1714678244510,-500.0,0.00030136,2]
[325276685,1714678244521,-500.0,0.00030136,2]
[325276686,1714678244532,-500.0,0.00030136,2]
[325276687,1714678244542,-500.0,0.00030136,2]
[325276688,1714678244554,-855.66,0.00030136,2]
[325276689,1714678244563,-500.0,0.00030136,2]
[325276690,1714678244573,-500.0,0.00030136,2]
[325276691,1714678244583,-500.0,0.00030136,2]
[325276692,1714678244592,-500.0,0.00030136,2]
[325276693,1714678244601,-500.0,0.00030136,2]
[325276694,1714678244611,-500.0,0.00030136,2]
[325276695,1714678244620,-500.0,0.00030136,2]
[325276696,1714678244629,-637.99,0.00030136,2]
[325276697,1714678244639,-500.0,0.00030136,2]
[325276698,1714678244649,-500.0,0.00030136,2]
[325276699,1714678244658,-500.0,0.00030136,2]
[325276700,1714678244667,-500.0,0.00030136,2]
[325276701,1714678244676,-500.0,0.00030136,2]
[325276702,1714678244686,-500.0,0.00030136,2]
[325276703,1714678244696,-500.0,0.00030136,2]
[325276704,1714678244705,-610.18,0.00030136,2]
[325276705,1714678244715,-500.0,0.00030136,2]
[325276706,1714678244724,-500.0,0.00030136,2]
[325276707,1714678244733,-500.0,0.00030136,2]
[325276708,1714678244743,-500.0,0.00030136,2]
[325276709,1714678244752,-500.0,0.00030136,2]
[325276710,1714678244762,-500.0,0.00030136,2]
[325276711,1714678244771,-500.0,0.00030136,2]